bitfinex-derivatives/quotes_BTCF0:USTF0_20251011
["timestamp","ask_amount","ask_price","bid_price","bid_amount"]
[1760186515762,0.49378883,112260.0,112250.0,0.03484725]
[1760186516356,0.70950883,112260.0,112250.0,0.03484725]
[1760186516757,0.13298883,112260.0,112250.0,0.12385385]
[1760186516954,0.4725208,112270.0,112260.0,0.03378]
[1760186517163,1.41345931,112270.0,112260.0,0.03378]
[1760186517358,0.71114284,112270.0,112260.0,0.03378]
[1760186517662,0.1117287,112260.0,112250.0,0.03484725]
[1760186518058,0.1117287,112260.0,112250.0,0.03384725]
[1760186518668,0.0889987,112260.0,112250.0,0.12285385]
[1760186518962,0.1117287,112260.0,112250.0,0.12285385]
[1760186519163,0.1117237,112270.0,112260.0,0.1227787]
[1760186519364,0.1117237,112270.0,112260.0,0.43682612]
[1760186519561,0.45230697,112280.0,112270.0,0.1227708]
[1760186519764,0.11188516,112280.0,112270.0,0.1227708]
[1760186519960,0.02229127,112280.0,112270.0,0.43681822]
[1760186520265,0.43316855,112290.0,112280.0,0.1227628]
[1760186520470,0.52214345,112290.0,112280.0,0.65273022]
[1760186520662,0.54487345,112290.0,112280.0,0.56374742]
[1760186520862,0.54487345,112290.0,112280.0,0.2497]
[1760186521063,0.18407345,112290.0,112280.0,0.2497]
[1760186521463,0.18507345,112290.0,112280.0,0.2497]
[1760186524865,0.18507345,112290.0,112280.0,0.6105]
[1760186525262,0.07336855,112290.0,112280.0,1.41353032]
[1760186525966,0.07336855,112290.0,112280.0,1.32442742]
[1760186525967,0.16234345,112290.0,112280.0,1.32442742]
[1760186526166,0.16234345,112290.0,112280.0,1.41341022]
[1760186526665,0.16234345,112290.0,112280.0,1.41353022]
[1760186526866,0.16234345,112290.0,112280.0,1.19761022]
[1760186527066,0.16234345,112290.0,112280.0,1.41349022]
[1760186528664,0.16234345,112290.0,112280.0,1.19761022]
[1760186529167,0.16234345,112290.0,112280.0,1.41349022]
[1760186529564,0.16234345,112290.0,112280.0,1.19761022]
[1760186529766,0.16234345,112290.0,112280.0,1.41345022]
[1760186530065,0.16234345,112290.0,112280.0,1.0994028]
[1760186530266,0.18507345,112290.0,112280.0,1.01042]
[1760186531067,0.16234345,112290.0,112280.0,1.01042]
[1760186531266,0.16234345,112290.0,112280.0,1.0994029]
[1760186532068,0.16234345,112290.0,112280.0,1.41345032]
[1760186532263,0.16234345,112290.0,112280.0,1.19761032]
[1760186532464,0.16234345,112290.0,112280.0,1.41345032]
[1760186533166,0.16234345,112290.0,112280.0,1.0994029]
[1760186533564,0.16234345,112290.0,112280.0,1.0993629]
[1760186533762,0.16234345,112290.0,112280.0,0.8835629]
[1760186534065,0.18507345,112290.0,112280.0,1.0994029]
[1760186534659,0.18507345,112290.0,112280.0,0.8835629]
[1760186534862,0.18507345,112290.0,112280.0,1.0994029]
[1760186535268,0.18507345,112290.0,112280.0,0.8835629]
[1760186535569,0.18507345,112290.0,112280.0,1.0994029]
[1760186535867,0.18507345,112290.0,112280.0,0.8835629]
[1760186536067,0.18507345,112290.0,112280.0,1.0993629]
[1760186536770,0.90114404,112290.0,112280.0,1.41341032]
[1760186536972,0.1127049,112290.0,112280.0,1.41341032]
[1760186537268,0.1127049,112290.0,112280.0,1.0993629]
[1760186538871,0.1127049,112290.0,112280.0,0.8835629]
[1760186539069,0.1127049,112290.0,112280.0,1.0993229]
[1760186539471,0.02373,112290.0,112280.0,1.0993229]
[1760186539867,0.02373,112290.0,112280.0,0.4835629]
[1760186540171,0.02373,112290.0,112280.0,0.6993229]
[1760186540675,0.02373,112290.0,112280.0,0.4835629]
[1760186540868,0.1127049,112290.0,112280.0,0.6993229]
[1760186541266,0.1127049,112290.0,112280.0,0.4835629]
[1760186541267,0.88282365,112290.0,112280.0,0.4835629]
[1760186541570,0.88282365,112290.0,112280.0,0.6993229]
[1760186541974,0.88282365,112290.0,112280.0,0.6992829]
[1760186542772,0.88282365,112290.0,112280.0,0.4835629]
[1760186543071,0.88282365,112290.0,112280.0,0.6992829]
[1760186544374,0.88282365,112290.0,112280.0,1.01329032]
[1760186544768,0.79384875,112290.0,112280.0,1.01329032]
[1760186544969,0.88282365,112290.0,112280.0,1.01329032]
[1760186545473,0.88282365,112290.0,112280.0,0.79761032]
[1760186545774,0.88282365,112290.0,112280.0,1.01329032]
[1760186547275,0.79384875,112290.0,112280.0,0.79761032]
[1760186547575,0.79384875,112290.0,112280.0,0.76593602]
[1760186547771,0.79384875,112290.0,112280.0,0.98157602]
[1760186548275,0.07156076,112290.0,112280.0,1.66394914]
[1760186550977,0.001,112290.0,112280.0,1.66394914]
[1760186551575,0.02212,112320.0,112310.0,0.124497]
[1760186551877,0.02212,112320.0,112310.0,0.62259012]
[1760186552879,0.02212,112320.0,112310.0,0.62263012]
[1760186553279,0.02212,112320.0,112310.0,0.40687012]
[1760186553487,0.02212,112320.0,112310.0,0.62259012]
[1760186553688,0.02312,112320.0,112310.0,0.62259012]
[1760186553883,0.02312,112320.0,112310.0,0.3402191]
[1760186553884,0.1120712,112320.0,112310.0,0.3402191]
[1760186554180,0.1120712,112320.0,112310.0,0.62259222]
[1760186554387,0.18234984,112320.0,112310.0,0.62259222]
[1760186554579,0.18234984,112320.0,112310.0,0.6426075]
[1760186555389,0.18234984,112320.0,112310.0,0.4268875]
[1760186555690,0.09339864,112320.0,112310.0,0.7876875]
[1760186555881,0.09339864,112320.0,112310.0,1.0033675]
[1760186557885,0.09339864,112320.0,112310.0,1.0033275]
[1760186558089,0.07040166,112320.0,112310.0,1.0033275]
[1760186558282,0.00012302,112320.0,112310.0,1.0033275]
[1760186559289,0.01323,112340.0,112330.0,0.1244832]
[1760186559592,0.4629612,112350.0,112340.0,0.1244753]
[1760186559892,0.48570925,112350.0,112340.0,0.40684842]
[1760186560392,0.48570545,112350.0,112340.0,0.40684842]
[1760186560892,0.48670545,112350.0,112340.0,0.40684842]
[1760186561692,0.55747747,112350.0,112340.0,0.40684842]
[1760186561893,0.55747747,112350.0,112340.0,0.31791312]
[1760186562493,0.55847747,112350.0,112340.0,0.31791312]
[1760186563799,0.1021653,112340.0,112330.0,0.03499]
[1760186564097,0.4629653,112340.0,112330.0,0.25079]
[1760186564287,0.4629653,112340.0,112330.0,0.03499]
[1760186564493,0.8629653,112340.0,112330.0,0.25087]
[1760186564996,0.5031653,112340.0,112330.0,0.25087]
[1760186565294,0.5041653,112340.0,112330.0,0.03499]
[1760186565498,0.5041653,112340.0,112330.0,0.53324312]
[1760186566798,0.5041653,112340.0,112330.0,0.31736312]
[1760186566998,0.5041653,112340.0,112330.0,0.53324312]
[1760186567599,0.5041653,112340.0,112330.0,0.53332312]
[1760186568093,0.5041653,112340.0,112330.0,0.53328312]
[1760186568396,0.5041653,112340.0,112330.0,0.25091]
[1760186568597,0.5041653,112340.0,112330.0,0.53328312]
[1760186568789,0.5031653,112340.0,112330.0,0.53328312]
[1760186570398,0.5031653,112340.0,112330.0,0.62222632]
[1760186571097,0.5031653,112340.0,112330.0,0.98298632]
[1760186571297,0.5031653,112340.0,112330.0,0.76710632]
[1760186571499,0.5031653,112340.0,112330.0,0.98298632]
[1760186571500,0.01423,112340.0,112330.0,0.98298632]
[1760186573103,0.001,112340.0,112330.0,0.98298632]
[1760186574393,0.15969972,112350.0,112330.0,0.98298632]
[1760186574593,0.19558918,112350.0,112340.0,0.31695312]
[1760186577100,0.19658918,112350.0,112340.0,0.31695312]
[1760186577603,0.19758918,112350.0,112340.0,0.31695312]
[1760186579305,0.19758918,112350.0,112340.0,0.53287312]
[1760186579499,0.19758918,112350.0,112340.0,0.53283312]
[1760186580202,0.1021653,112340.0,112330.0,0.03472]
[1760186580407,0.1021653,112340.0,112330.0,0.2506]
[1760186580601,0.1021653,112340.0,112330.0,0.31709312]
[1760186580802,0.12486852,112340.0,112330.0,0.53297312]
[1760186581203,0.12486852,112340.0,112330.0,0.2506]
[1760186581807,0.12486852,112340.0,112330.0,0.03472]
[1760186582003,0.1248724,112340.0,112330.0,0.53297312]
[1760186582306,0.1248724,112340.0,112330.0,0.2506]
[1760186582805,0.0889432,112330.0,112320.0,0.37423]
[1760186583009,0.1248803,112330.0,112320.0,0.39552]
[1760186583209,0.1248803,112330.0,112320.0,0.61136]
[1760186583911,0.1248803,112330.0,112320.0,0.39552]
[1760186584107,0.1248803,112330.0,112320.0,0.61136]
[1760186584413,0.4856803,112330.0,112320.0,0.25056]
[1760186584711,0.4866803,112330.0,112320.0,0.25056]
[1760186585404,0.1258803,112330.0,112320.0,0.89373312]
[1760186587110,0.1258803,112330.0,112320.0,0.98268432]
[1760186587512,0.1258803,112330.0,112320.0,0.89373312]
[1760186590014,0.1248803,112330.0,112320.0,0.89373312]
[1760186590713,0.1258803,112330.0,112320.0,0.89373312]
[1760186590909,0.1258803,112330.0,112290.0,0.01329]
[1760186590910,0.0889512,112320.0,112290.0,0.01329]
[1760186591109,0.462997,112300.0,112290.0,0.01329]
[1760186591317,0.48572713,112300.0,112290.0,0.01329]
[1760186591515,0.48572713,112300.0,112290.0,0.22985]
[1760186591711,0.48572713,112300.0,112290.0,0.53351312]
[1760186592015,0.088967,112300.0,112290.0,0.53351312]
[1760186592213,0.102197,112300.0,112290.0,0.53351312]
[1760186592716,0.102197,112300.0,112290.0,0.55433529]
[1760186593611,0.102197,112300.0,112290.0,0.55533529]
[1760186594110,0.102197,112300.0,112290.0,0.05640217]
[1760186594717,0.102197,112300.0,112290.0,0.27204217]
[1760186594917,0.102197,112300.0,112290.0,0.27304217]
[1760186595816,0.17427444,112300.0,112290.0,0.27304217]
[1760186599214,0.17427444,112300.0,112290.0,0.55541529]
[1760186599419,0.17427444,112300.0,112290.0,0.27296217]
[1760186599921,0.17427444,112300.0,112290.0,0.05640217]
[1760186600118,0.17427444,112300.0,112290.0,0.55533529]
[1760186600720,0.17427444,112300.0,112290.0,0.27296217]
[1760186601422,0.17427444,112300.0,112290.0,0.05640217]
[1760186602022,0.53507444,112300.0,112290.0,0.05640217]
[1760186603421,0.75163444,112300.0,112290.0,0.05640217]
[1760186603621,0.53507444,112300.0,112290.0,0.05640217]
[1760186603821,0.75163444,112300.0,112290.0,0.05640217]
[1760186604616,0.53507444,112300.0,112290.0,0.05640217]
[1760186605224,0.75159444,112300.0,112290.0,0.05640217]
[1760186605628,0.53507444,112300.0,112290.0,0.05640217]
[1760186605824,0.75159444,112300.0,112290.0,0.05640217]
[1760186606430,0.53507444,112300.0,112290.0,0.05640217]
[1760186606821,0.75159444,112300.0,112290.0,0.05640217]
[1760186607024,0.75155444,112300.0,112290.0,0.05640217]
[1760186607323,0.53507444,112300.0,112290.0,0.05640217]
[1760186608126,0.75163444,112300.0,112290.0,0.05640217]
[1760186608326,0.53507444,112300.0,112290.0,0.05640217]
[1760186608819,0.75163444,112300.0,112290.0,0.05640217]
[1760186609628,0.53507444,112300.0,112290.0,0.05640217]
[1760186609821,0.75159444,112300.0,112290.0,0.05640217]
[1760186610224,0.53507444,112300.0,112290.0,0.05640217]
[1760186610423,0.75159444,112300.0,112290.0,0.05640217]
[1760186611226,0.53507444,112300.0,112290.0,0.05640217]
[1760186611425,0.75159444,112300.0,112290.0,0.05640217]
[1760186611725,0.75155444,112300.0,112290.0,0.05640217]
[1760186612026,0.53507444,112300.0,112290.0,0.05640217]
[1760186612226,0.75155444,112300.0,112290.0,0.05640217]
[1760186612525,0.53507444,112300.0,112290.0,0.05640217]
[1760186612927,0.75155444,112300.0,112290.0,0.05640217]
[1760186613726,0.53507444,112300.0,112290.0,0.05640217]
[1760186613916,0.75155444,112300.0,112290.0,0.05640217]
[1760186614321,0.53507444,112300.0,112290.0,0.05640217]
[1760186614521,0.75155444,112300.0,112290.0,0.05640217]
[1760186614726,0.53507444,112300.0,112290.0,0.05640217]
[1760186614925,0.75151444,112300.0,112290.0,0.05640217]
[1760186615324,0.53507444,112300.0,112290.0,0.05640217]
[1760186615525,0.75151444,112300.0,112290.0,0.05640217]
[1760186616021,0.53507444,112300.0,112290.0,0.05640217]
[1760186616828,0.75147444,112300.0,112290.0,0.05640217]
[1760186617131,0.53507444,112300.0,112290.0,0.05640217]
[1760186617627,0.75147444,112300.0,112290.0,0.05640217]
[1760186618022,0.53507444,112300.0,112290.0,0.14536817]
[1760186618222,0.43287744,112300.0,112290.0,0.54536817]
[1760186618423,0.07207744,112300.0,112290.0,0.54536817]
[1760186618618,0.3608,112310.0,112290.0,0.76172817]
[1760186618827,0.48584707,112310.0,112300.0,0.03449]
[1760186619028,0.70224707,112310.0,112300.0,0.03449]
[1760186619227,0.70220707,112310.0,112300.0,0.03449]
[1760186619426,0.48584707,112310.0,112300.0,0.03449]
[1760186619727,0.55803195,112310.0,112300.0,0.03449]
[1760186620026,0.77439195,112310.0,112300.0,0.03449]
[1760186620730,0.55803195,112310.0,112300.0,0.03449]
[1760186621025,0.19723195,112310.0,112300.0,0.03449]
[1760186621226,0.41355195,112310.0,112300.0,0.03449]
[1760186621821,0.55803195,112310.0,112300.0,0.03449]
[1760186622227,0.77435195,112310.0,112300.0,0.03449]
[1760186623029,0.55803195,112310.0,112300.0,0.03449]
[1760186623427,0.77431195,112310.0,112300.0,0.03449]
[1760186623828,0.55803195,112310.0,112300.0,0.03449]
[1760186624128,0.77431195,112310.0,112300.0,0.03449]
[1760186624526,0.55803195,112310.0,112300.0,0.03449]
[1760186624728,0.77431195,112310.0,112300.0,0.03449]
[1760186625131,0.77427195,112310.0,112300.0,0.03449]
[1760186625433,0.55803195,112310.0,112300.0,0.03449]
[1760186625629,0.77427195,112310.0,112300.0,0.03449]
[1760186626134,1.47491509,112310.0,112300.0,0.03449]
[1760186626533,1.25867509,112310.0,112300.0,0.03449]
[1760186626736,1.47491509,112310.0,112300.0,0.03449]
[1760186627535,1.25867509,112310.0,112300.0,0.03449]
[1760186627729,1.47487509,112310.0,112300.0,0.03449]
[1760186627931,1.25867509,112310.0,112300.0,0.03449]
[1760186628133,1.47487509,112310.0,112300.0,0.03449]
[1760186628430,1.25867509,112310.0,112300.0,0.03449]
[1760186628838,1.47483509,112310.0,112300.0,0.03449]
[1760186629132,1.25867509,112310.0,112300.0,0.03449]
[1760186629537,1.47483509,112310.0,112300.0,0.03449]
[1760186629838,1.25867509,112310.0,112300.0,0.03449]
[1760186630031,1.47483509,112310.0,112300.0,0.03449]
[1760186630428,1.25867509,112310.0,112300.0,0.03449]
[1760186630634,1.47483509,112310.0,112300.0,0.03449]
[1760186630834,1.47479509,112310.0,112300.0,0.03449]
[1760186631037,1.25867509,112310.0,112300.0,0.03449]
[1760186631238,1.47479509,112310.0,112300.0,0.03449]
[1760186631638,1.25867509,112310.0,112300.0,0.03449]
[1760186631839,1.47479509,112310.0,112300.0,0.03449]
[1760186634236,1.25867509,112310.0,112300.0,0.03449]
[1760186634444,1.47471509,112310.0,112300.0,0.03449]
[1760186637747,1.25867509,112310.0,112300.0,0.03449]
[1760186637945,1.47467509,112310.0,112300.0,0.03449]
[1760186639546,1.25867509,112310.0,112300.0,0.03449]
[1760186639845,1.47463509,112310.0,112300.0,0.03449]
[1760186640249,1.25867509,112310.0,112300.0,0.03449]
[1760186640443,1.47463509,112310.0,112300.0,0.03449]
[1760186642148,1.47459509,112310.0,112300.0,0.03449]
[1760186642549,1.25867509,112310.0,112300.0,0.03449]
[1760186642751,1.47459509,112310.0,112300.0,0.03449]
[1760186643245,1.25867509,112310.0,112300.0,0.03449]
[1760186643454,1.47459509,112310.0,112300.0,0.03449]
[1760186643654,1.25867509,112310.0,112300.0,0.03449]
[1760186644158,1.47455509,112310.0,112300.0,0.03449]
[1760186644459,1.25867509,112310.0,112300.0,0.03449]
[1760186644759,1.47455509,112310.0,112300.0,0.03449]
[1760186646257,1.25867509,112310.0,112300.0,0.03449]
[1760186646456,1.47451509,112310.0,112300.0,0.03449]
[1760186648258,1.25867509,112310.0,112300.0,0.03449]
[1760186648957,1.47447509,112310.0,112300.0,0.03449]
[1760186650260,0.1021881,112300.0,112290.0,0.05733217]
[1760186650560,0.4629881,112300.0,112290.0,0.05733217]
[1760186652263,0.4629881,112300.0,112290.0,0.05833217]
[1760186654558,0.12516937,112300.0,112290.0,0.05833217]
[1760186654758,0.1021881,112300.0,112290.0,0.05833217]
[1760186661063,0.1021881,112300.0,112290.0,0.27405217]
[1760186661565,0.1021881,112300.0,112290.0,0.05833217]
[1760186661863,0.1021881,112300.0,112290.0,0.27405217]
[1760186662260,0.1021881,112300.0,112290.0,0.05833217]
[1760186662660,0.4629881,112300.0,112290.0,0.05833217]
[1760186662868,1.20794384,112300.0,112290.0,0.02182217]
[1760186663167,0.89418834,112300.0,112290.0,0.02182217]
[1760186663364,1.10990834,112300.0,112290.0,0.02182217]
[1760186663666,0.89418834,112300.0,112290.0,0.02182217]
[1760186663868,1.10990834,112300.0,112290.0,0.02182217]
[1760186664066,0.88591834,112300.0,112290.0,0.05588217]
[1760186664766,1.10163834,112300.0,112290.0,0.05588217]
[1760186665166,0.88591834,112300.0,112290.0,0.05588217]
[1760186665361,1.10163834,112300.0,112290.0,0.05588217]
[1760186665969,0.88591834,112300.0,112290.0,0.05588217]
[1760186666165,0.70163834,112300.0,112290.0,0.05588217]
[1760186666365,0.48591834,112300.0,112290.0,0.05588217]
[1760186666766,0.70163834,112300.0,112290.0,0.05588217]
[1760186667567,0.48591834,112300.0,112290.0,0.05588217]
[1760186667759,0.70163834,112300.0,112290.0,0.05588217]
[1760186668362,0.48591834,112300.0,112290.0,0.05588217]
[1760186668567,0.70163834,112300.0,112290.0,0.05588217]
[1760186668764,0.48591834,112300.0,112290.0,0.05588217]
[1760186669066,0.70163834,112300.0,112290.0,0.05588217]
[1760186670366,0.48591834,112300.0,112290.0,0.05588217]
[1760186670560,0.70163834,112300.0,112290.0,0.05588217]
[1760186670764,0.48591834,112300.0,112290.0,0.05588217]
[1760186671167,0.70163834,112300.0,112290.0,0.05588217]
[1760186671866,0.48591834,112300.0,112290.0,0.05588217]
[1760186672069,0.70163834,112300.0,112290.0,0.05588217]
[1760186672860,0.48591834,112300.0,112290.0,0.05588217]
[1760186673059,0.70163834,112300.0,112290.0,0.05588217]
[1760186673267,0.48591834,112300.0,112290.0,0.05588217]
[1760186673467,0.70163834,112300.0,112290.0,0.05588217]
[1760186673858,0.70163834,112300.0,112290.0,0.05488217]
[1760186674868,0.70263834,112300.0,112290.0,0.05488217]
[1760186675264,0.48691834,112300.0,112290.0,0.05488217]
[1760186675670,0.70263834,112300.0,112290.0,0.05488217]
[1760186676371,0.48691834,112300.0,112290.0,0.33727334]
[1760186676567,0.70263834,112300.0,112290.0,0.05488217]
[1760186677370,0.48691834,112300.0,112290.0,0.05488217]
[1760186677571,0.70263834,112300.0,112290.0,0.05488217]
[1760186678270,0.48691834,112300.0,112290.0,0.05488217]
[1760186678470,0.70263834,112300.0,112290.0,0.05488217]
[1760186679072,0.48691834,112300.0,112290.0,0.05488217]
[1760186679269,0.70263834,112300.0,112290.0,0.05488217]
[1760186679661,0.48691834,112300.0,112290.0,0.05488217]
[1760186679865,0.70263834,112300.0,112290.0,0.05488217]
[1760186681369,0.48691834,112300.0,112290.0,0.05488217]
[1760186681566,0.70263834,112300.0,112290.0,0.05488217]
[1760186682672,0.48691834,112300.0,112290.0,0.05488217]
[1760186683069,0.70263834,112300.0,112290.0,0.05488217]
[1760186683268,0.48691834,112300.0,112290.0,0.05488217]
[1760186683464,0.70263834,112300.0,112290.0,0.05488217]
[1760186683664,0.48691834,112300.0,112290.0,0.05488217]
[1760186683973,0.70263834,112300.0,112290.0,0.05488217]
[1760186684374,0.48691834,112300.0,112290.0,0.05488217]
[1760186684674,0.70263834,112300.0,112290.0,0.05488217]
[1760186685275,0.48691834,112300.0,112290.0,0.05488217]
[1760186685469,0.70263834,112300.0,112290.0,0.05488217]
[1760186685976,0.48691834,112300.0,112290.0,0.05488217]
[1760186686576,0.70263834,112300.0,112290.0,0.05488217]
[1760186687270,0.48691834,112300.0,112290.0,0.05488217]
[1760186687475,0.70263834,112300.0,112290.0,0.05488217]
[1760186689075,0.48691834,112300.0,112290.0,0.05488217]
[1760186689575,0.70263834,112300.0,112290.0,0.05488217]
[1760186690176,0.48691834,112300.0,112290.0,0.05488217]
[1760186690380,0.70263834,112300.0,112290.0,0.05488217]
[1760186690775,0.110436,112290.0,112280.0,0.46628885]
[1760186690982,0.471236,112290.0,112280.0,0.28665885]
[1760186691181,0.471236,112290.0,112280.0,0.50237885]
[1760186691481,0.49460214,112290.0,112280.0,0.50237885]
[1760186691679,0.50856214,112290.0,112280.0,0.50237885]
[1760186692972,0.50856214,112290.0,112280.0,0.50549612]
[1760186695178,0.50856214,112290.0,112280.0,0.28977612]
[1760186695378,0.50940029,112290.0,112280.0,0.50549612]
[1760186696085,0.50940029,112290.0,112280.0,0.28977612]
[1760186696273,0.50940029,112290.0,112280.0,0.50549612]
[1760186696883,0.50940029,112290.0,112280.0,0.53731844]
[1760186697079,0.50940029,112290.0,112280.0,0.53727844]
[1760186698383,0.50940029,112290.0,112280.0,0.55072844]
[1760186698576,0.49544029,112290.0,112280.0,0.55072844]
[1760186698784,0.13464029,112290.0,112280.0,0.55072844]
[1760186699982,0.13003922,112290.0,112280.0,0.82402234]
[1760186700174,1.23653822,112310.0,112300.0,0.1250481]
[1760186700175,0.79429802,112310.0,112300.0,0.1250481]
[1760186700483,0.07218488,112310.0,112300.0,1.38391927]
[1760186700781,0.4712166,112320.0,112310.0,0.03609]
[1760186700983,0.1104166,112320.0,112310.0,0.76823137]
[1760186701181,0.0889466,112320.0,112310.0,1.16823137]
[1760186702074,0.0889466,112320.0,112310.0,1.07928117]
[1760186702282,0.0889466,112320.0,112310.0,1.29496117]
[1760186702483,0.15993678,112320.0,112310.0,1.29496117]
[1760186704180,0.15993678,112320.0,112310.0,1.38391137]
[1760186704479,0.15993678,112320.0,112310.0,1.02311137]
[1760186705080,0.07099018,112320.0,112310.0,1.66630254]
[1760186705279,1.14421075,112330.0,112310.0,1.66630254]
[1760186705484,1.16568075,112330.0,112320.0,0.60087234]
[1760186706482,1.16568075,112330.0,112320.0,0.31848117]
[1760186707582,1.23698475,112330.0,112320.0,0.31848117]
[1760186708482,1.23698475,112330.0,112320.0,0.53412117]
[1760186709583,1.23698475,112330.0,112320.0,0.31848117]
[1760186709785,1.23698475,112330.0,112320.0,0.53412117]
[1760186710779,1.25094475,112330.0,112320.0,0.52067117]
[1760186711184,1.25094475,112330.0,112320.0,0.53412117]
[1760186713188,1.25094475,112330.0,112320.0,0.31848117]
[1760186713487,1.65094475,112330.0,112320.0,0.28239117]
[1760186713688,1.65094475,112330.0,112310.0,0.52063117]
[1760186713689,0.1243722,112320.0,112310.0,0.52063117]
[1760186713886,0.4851722,112320.0,112310.0,0.52063117]
[1760186714085,0.4851722,112320.0,112310.0,0.30503117]
[1760186714284,0.4851722,112320.0,112310.0,0.52063117]
[1760186714988,0.4851722,112320.0,112310.0,0.60958137]
[1760186715282,0.4712122,112320.0,112310.0,0.62303137]
[1760186715488,0.1104122,112320.0,112310.0,0.62303137]
[1760186716189,0.1104122,112320.0,112310.0,0.53408117]
[1760186716490,0.1104122,112320.0,112310.0,0.31848117]
[1760186716790,0.4712122,112320.0,112310.0,0.53408117]
[1760186717688,0.4712122,112320.0,112310.0,0.31848117]
[1760186717985,0.4712122,112320.0,112310.0,0.52063117]
[1760186717986,0.4850422,112320.0,112310.0,0.52063117]
[1760186718185,0.4850422,112320.0,112310.0,0.30503117]
[1760186718390,0.7006422,112320.0,112310.0,0.30503117]
[1760186720386,0.4850422,112320.0,112310.0,0.30503117]
[1760186720582,0.7006422,112320.0,112310.0,0.30503117]
[1760186720782,0.02147,112320.0,112310.0,0.40751137]
[1760186720983,1.23687515,112330.0,112320.0,0.1251423]
[1760186721287,1.26100513,112330.0,112320.0,0.90552464]
[1760186721487,0.87607515,112330.0,112320.0,0.53419117]
[1760186721891,0.87607515,112330.0,112320.0,0.2518]
[1760186722089,1.27483548,112330.0,112320.0,0.53419117]
[1760186722393,1.26200548,112330.0,112320.0,0.53419117]
[1760186722594,1.26300548,112330.0,112320.0,0.53419117]
[1760186723096,1.26300548,112330.0,112320.0,0.31859117]
[1760186723287,1.26300548,112330.0,112320.0,0.53419117]
[1760186723992,1.26300548,112330.0,112320.0,0.31859117]
[1760186724188,1.26300548,112330.0,112320.0,0.53415117]
[1760186724891,0.90220548,112330.0,112320.0,0.53415117]
[1760186725193,0.90220548,112330.0,112320.0,0.31859117]
[1760186725395,0.90220548,112330.0,112320.0,0.53415117]
[1760186725793,0.90220548,112330.0,112320.0,0.31859117]
[1760186725994,0.90220548,112330.0,112320.0,0.53415117]
[1760186726188,0.90220548,112330.0,112320.0,0.90548464]
[1760186726394,0.90220548,112330.0,112320.0,1.26628464]
[1760186726695,0.81326518,112330.0,112320.0,1.05072464]
[1760186726894,0.90219958,112330.0,112320.0,1.26628464]
[1760186727497,0.073304,112330.0,112320.0,1.94867581]
[1760186727797,0.038304,112330.0,112320.0,1.94867581]
[1760186727994,0.002,112330.0,112320.0,1.94867581]
[1760186728388,0.002,112330.0,112320.0,1.66628464]
[1760186728591,0.002,112330.0,112320.0,1.94867581]
[1760186728791,0.001,112330.0,112320.0,1.94867581]
[1760186728993,0.09334765,112340.0,112330.0,0.1250743]
[1760186729197,0.02136,112350.0,112340.0,0.1115898]
[1760186729495,0.02136,112350.0,112340.0,0.79922129]
[1760186729798,0.0454145,112350.0,112340.0,1.01478129]
[1760186730092,0.0454145,112350.0,112340.0,0.69685149]
[1760186730093,0.148163,112350.0,112340.0,0.69685149]
[1760186730296,0.1241085,112350.0,112340.0,0.33605149]
[1760186730504,0.14815598,112350.0,112340.0,0.55161149]
[1760186731293,0.21823802,112350.0,112340.0,0.55161149]
[1760186731996,0.22023802,112350.0,112340.0,0.55161149]
[1760186734001,0.22023802,112350.0,112340.0,0.33605149]
[1760186734197,0.1241243,112330.0,112320.0,0.38347]
[1760186734402,0.03519,112320.0,112310.0,0.4724202]
[1760186734606,0.74769689,112320.0,112310.0,1.01485169]
[1760186734906,0.02136,112320.0,112310.0,1.01485169]
[1760186735809,0.1103025,112320.0,112310.0,1.01485169]
[1760186736911,0.02136,112320.0,112310.0,1.01485169]
[1760186737816,0.02136,112320.0,112310.0,0.79933169]
[1760186738408,0.02136,112320.0,112310.0,1.01485169]
[1760186739317,0.71575201,112320.0,112310.0,0.79933169]
[1760186739518,0.71575201,112320.0,112310.0,1.01485169]
[1760186740517,0.71575201,112320.0,112310.0,0.79933169]
[1760186740712,0.71575201,112320.0,112310.0,1.01485169]
[1760186741017,0.80469471,112320.0,112310.0,1.01485169]
[1760186741319,0.81734471,112320.0,112310.0,1.01485169]
[1760186741914,0.81734471,112320.0,112310.0,1.00132169]
[1760186742313,0.81734471,112320.0,112310.0,0.79858169]
[1760186742512,0.81734471,112320.0,112310.0,1.01410169]
[1760186743219,0.81734471,112320.0,112310.0,0.91237149]
[1760186743612,1.21734471,112320.0,112310.0,0.02267]
[1760186743914,1.21734471,112320.0,112310.0,0.23819]
[1760186745620,0.1235506,112310.0,112300.0,0.3608]
[1760186745919,0.1250485,112300.0,112290.0,0.69631149]
[1760186746122,0.1250485,112300.0,112290.0,0.91183149]
[1760186747420,0.1250485,112300.0,112290.0,0.38293]
[1760186747919,0.19776628,112300.0,112290.0,0.38293]
[1760186748115,0.19776628,112300.0,112290.0,0.59845]
[1760186748923,0.19776628,112300.0,112290.0,0.23765]
[1760186749222,0.19776628,112300.0,112290.0,0.55103149]
[1760186750720,0.1250564,112290.0,112280.0,0.92959876]
[1760186751519,0.1250564,112290.0,112280.0,1.01857306]
[1760186751914,0.1250564,112290.0,112280.0,1.01957306]
[1760186752320,0.1250564,112290.0,112280.0,0.93159876]
[1760186753323,0.1250564,112290.0,112280.0,0.25741727]
[1760186753624,0.8858564,112290.0,112280.0,0.01856727]
[1760186754124,1.1013764,112290.0,112280.0,0.01856727]
[1760186755023,0.8858564,112290.0,112280.0,0.01856727]
[1760186755229,1.82876297,112290.0,112280.0,0.01856727]
[1760186755523,1.61324297,112290.0,112280.0,0.01856727]
[1760186755724,1.82876297,112290.0,112280.0,0.01856727]
[1760186755926,1.61324297,112290.0,112280.0,0.01856727]
[1760186757018,1.82876297,112290.0,112280.0,0.01856727]
[1760186758828,1.82880297,112290.0,112280.0,0.01856727]
[1760186759730,1.61324297,112290.0,112280.0,0.01856727]
[1760186760127,1.82880297,112290.0,112280.0,0.01856727]
[1760186760626,1.61324297,112290.0,112280.0,0.01856727]
[1760186760828,1.82880297,112290.0,112280.0,0.01856727]
[1760186761426,1.61324297,112290.0,112280.0,0.01856727]
[1760186761631,1.82880297,112290.0,112280.0,0.01856727]
[1760186761820,1.61324297,112290.0,112280.0,0.01856727]
[1760186762226,1.82880297,112290.0,112280.0,0.01856727]
[1760186762429,1.61324297,112290.0,112280.0,0.01856727]
[1760186762824,1.82880297,112290.0,112280.0,0.01856727]
[1760186763033,1.61324297,112290.0,112280.0,0.01856727]
[1760186763229,1.63719738,112290.0,112280.0,0.01856727]
[1760186763732,1.85275738,112290.0,112280.0,0.01856727]
[1760186765432,1.63719738,112290.0,112280.0,0.01856727]
[1760186765632,1.85275738,112290.0,112280.0,0.01856727]
[1760186766032,1.63719738,112290.0,112280.0,0.01856727]
[1760186766633,1.85275738,112290.0,112280.0,0.01856727]
[1760186767225,1.63719738,112290.0,112280.0,0.01856727]
[1760186768035,1.85275738,112290.0,112280.0,0.01856727]
[1760186769034,1.63719738,112290.0,112280.0,0.01856727]